[Event "Titled Tuesday Blitz February 28 Late 2023"]
[White "Principe, Gerson"]
[Black "Vargas, Mauricio"]
[WhiteFideId "3804550"]
[BlackFideId "4404572"]
[WhiteElo "2229"]
[BlackElo "2025"]
[Result "1-0"]
[Round "01"]
[TimeControl "180+2"]
[Date "2023.02.28"]
[WhiteClock "0:01:20"]
[BlackClock "0:00:20"]

1. Nf3 {[%clk 0:03:00]}  Nc6 {[%clk 0:02:57]} 2. d4 {[%clk 0:03:01]}  g6 {[%clk 0:02:48]} 3. b3 {[%clk 0:02:57]}  Bg7 {[%clk 0:02:46]} 4. Bb2 {[%clk 0:02:58]}  Nf6 {[%clk 0:02:35]} 5. e3 {[%clk 0:02:57]}  Kf8 {[%clk 0:02:34]} 6. Be2 {[%clk 0:02:54]}  h5 {[%clk 0:02:34]} 7. O-O {[%clk 0:02:53]}  h4 {[%clk 0:02:34]} 8. c4 {[%clk 0:02:52]}  h3 {[%clk 0:02:33]} 9. g3 {[%clk 0:02:53]}  d5 {[%clk 0:02:26]} 10. Nc3 {[%clk 0:02:50]}  e6 {[%clk 0:02:24]} 11. Rc1 {[%clk 0:02:47]}  Ne7 {[%clk 0:02:23]} 12. Ne5 {[%clk 0:02:45]}  b6 {[%clk 0:02:18]} 13. cxd5 {[%clk 0:02:39]}  Nexd5 {[%clk 0:02:17]} 14. Ba3+ {[%clk 0:02:29]}  Kg8 {[%clk 0:02:16]} 15. Nc6 {[%clk 0:02:25]}  Qe8 {[%clk 0:02:13]} 16. Nxd5 {[%clk 0:02:18]}  Nxd5 {[%clk 0:02:13]} 17. e4 {[%clk 0:02:18]}  Nf6 {[%clk 0:01:44]} 18. Ne7+ {[%clk 0:02:17]}  Kh7 {[%clk 0:01:43]} 19. Rxc7 {[%clk 0:02:13]}  Nxe4 {[%clk 0:01:37]} 20. Bf3 {[%clk 0:02:07]}  f5 {[%clk 0:01:27]} 21. Bxe4 {[%clk 0:02:06]}  fxe4 {[%clk 0:01:26]} 22. Qg4 {[%clk 0:02:06]}  e5 {[%clk 0:01:13]} 23. Qh4+ {[%clk 0:02:05]}  Bh6 {[%clk 0:01:11]} 24. Nf5+ {[%clk 0:02:01]}  Kg8 {[%clk 0:00:53]} 25. Nxh6+ {[%clk 0:02:00]}  Rxh6 {[%clk 0:00:52]} 26. Qxh6 {[%clk 0:01:59]}  Bd7 {[%clk 0:00:50]} 27. dxe5 {[%clk 0:01:38]}  b5 {[%clk 0:00:42]} 28. Rd1 {[%clk 0:01:34]}  Rd8 {[%clk 0:00:38]} 29. e6 {[%clk 0:01:21]}  Qxe6 {[%clk 0:00:36]} 30. Bb2 {[%clk 0:01:21]}  Qf7 {[%clk 0:00:20]} 31. Qh8# {[%clk 0:01:20]} 1-0


[Site "https://www.chess.com"]

[Event "Titled Tuesday Blitz February 28 Late 2023"]
[White "Burke, Paul"]
[Black "Ehlvest, Jaan"]
[WhiteFideId "2605767"]
[BlackFideId "4500016"]
[WhiteElo "1894"]
[BlackElo "2442"]
[Result "0-1"]
[Round "01"]
[TimeControl "180+2"]
[Date "2023.02.28"]
[WhiteClock "0:00:52"]
[BlackClock "0:01:41"]

1. e4 {[%clk 0:03:00]}  c5 {[%clk 0:02:58]} 2. Nf3 {[%clk 0:02:59]}  Nc6 {[%clk 0:02:58]} 3. d4 {[%clk 0:02:59]}  cxd4 {[%clk 0:02:58]} 4. c3 {[%clk 0:02:59]}  dxc3 {[%clk 0:02:55]} 5. Nxc3 {[%clk 0:02:58]}  e6 {[%clk 0:02:55]} 6. Bf4 {[%clk 0:02:57]}  a6 {[%clk 0:02:48]} 7. Bd3 {[%clk 0:02:56]}  d6 {[%clk 0:02:48]} 8. Qe2 {[%clk 0:02:56]}  Nge7 {[%clk 0:02:47]} 9. Rd1 {[%clk 0:02:55]}  Ng6 {[%clk 0:02:46]} 10. Bg3 {[%clk 0:02:55]}  Be7 {[%clk 0:02:44]} 11. e5 {[%clk 0:02:49]}  d5 {[%clk 0:02:41]} 12. a3 {[%clk 0:02:48]}  b5 {[%clk 0:02:36]} 13. h4 {[%clk 0:02:43]}  h6 {[%clk 0:02:34]} 14. h5 {[%clk 0:02:41]}  Nf8 {[%clk 0:02:34]} 15. Bb1 {[%clk 0:02:11]}  Nd7 {[%clk 0:02:32]} 16. Nxd5 {[%clk 0:02:08]}  exd5 {[%clk 0:02:31]} 17. e6 {[%clk 0:02:07]}  fxe6 {[%clk 0:02:17]} 18. Qxe6 {[%clk 0:02:07]}  Nde5 {[%clk 0:02:11]} 19. Bg6+ {[%clk 0:01:25]}  Kf8 {[%clk 0:02:10]} 20. Qxd5 {[%clk 0:01:22]}  Qxd5 {[%clk 0:02:09]} 21. Rxd5 {[%clk 0:01:22]}  Nxg6 {[%clk 0:02:01]} 22. hxg6 {[%clk 0:01:21]}  Be6 {[%clk 0:02:01]} 23. Rd1 {[%clk 0:01:17]}  Bf5 {[%clk 0:01:53]} 24. Ne5 {[%clk 0:01:00]}  Nxe5 {[%clk 0:01:50]} 25. Bxe5 {[%clk 0:00:59]}  Bxg6 {[%clk 0:01:49]} 26. Rh3 {[%clk 0:00:59]}  Re8 {[%clk 0:01:46]} 27. Rf3+ {[%clk 0:00:57]}  Bf6 {[%clk 0:01:45]} 28. Re3 {[%clk 0:00:52]}  Rxe5 {[%clk 0:01:41]} 0-1


[Site "https://www.chess.com"]

[Event "Titled Tuesday Blitz February 28 Late 2023"]
[White "Averjanov, Alexey"]
[Black "Nakamura, Hikaru"]
[WhiteFideId "14109867"]
[BlackFideId "2016192"]
[WhiteElo "2658"]
[BlackElo "2879"]
[Result "0-1"]
[Round "02"]
[TimeControl "180+2"]
[Date "2023.02.28"]
[WhiteClock "0:00:02"]
[BlackClock "0:01:29"]

1. d4 {[%clk 0:02:59]}  d6 {[%clk 0:02:59]} 2. c4 {[%clk 0:02:59]}  f5 {[%clk 0:02:59]} 3. Nf3 {[%clk 0:02:59]}  g6 {[%clk 0:02:57]} 4. g3 {[%clk 0:02:59]}  Bg7 {[%clk 0:02:58]} 5. Bg2 {[%clk 0:02:59]}  e5 {[%clk 0:02:59]} 6. O-O {[%clk 0:02:41]}  e4 {[%clk 0:02:59]} 7. Nfd2 {[%clk 0:02:40]}  c6 {[%clk 0:02:54]} 8. e3 {[%clk 0:02:39]}  d5 {[%clk 0:02:54]} 9. Nc3 {[%clk 0:02:38]}  Be6 {[%clk 0:02:53]} 10. b3 {[%clk 0:02:38]}  Nf6 {[%clk 0:02:53]} 11. f4 {[%clk 0:02:33]}  exf3 {[%clk 0:02:52]} 12. Qxf3 {[%clk 0:02:33]}  O-O {[%clk 0:02:52]} 13. Bb2 {[%clk 0:02:28]}  Re8 {[%clk 0:02:51]} 14. Rae1 {[%clk 0:02:28]}  Na6 {[%clk 0:02:50]} 15. a3 {[%clk 0:02:26]}  Qd7 {[%clk 0:02:47]} 16. h3 {[%clk 0:02:25]}  Re7 {[%clk 0:02:47]} 17. Kh2 {[%clk 0:02:24]}  Rae8 {[%clk 0:02:46]} 18. Re2 {[%clk 0:02:25]}  h5 {[%clk 0:02:46]} 19. Rfe1 {[%clk 0:02:22]}  Ne4 {[%clk 0:02:46]} 20. Ncxe4 {[%clk 0:02:14]}  fxe4 {[%clk 0:02:46]} 21. Qf1 {[%clk 0:02:12]}  Rf7 {[%clk 0:02:46]} 22. Qg1 {[%clk 0:02:11]}  Qd6 {[%clk 0:02:43]} 23. h4 {[%clk 0:01:57]}  Bf6 {[%clk 0:02:30]} 24. Bxe4 {[%clk 0:01:38]}  Rg7 {[%clk 0:02:21]} 25. Bd3 {[%clk 0:01:16]}  Bg4 {[%clk 0:02:18]} 26. e4 {[%clk 0:01:11]}  Bxh4 {[%clk 0:02:14]} 27. Rf2 {[%clk 0:00:52]}  Nc7 {[%clk 0:02:10]} 28. cxd5 {[%clk 0:00:44]}  cxd5 {[%clk 0:02:10]} 29. Ref1 {[%clk 0:00:34]}  Bg5 {[%clk 0:02:09]} 30. exd5 {[%clk 0:00:28]}  Bxd2 {[%clk 0:02:02]} 31. Rxd2 {[%clk 0:00:25]}  Nxd5 {[%clk 0:02:03]} 32. Rdf2 {[%clk 0:00:23]}  Bd7 {[%clk 0:01:56]} 33. Bc4 {[%clk 0:00:20]}  Kh7 {[%clk 0:01:55]} 34. Bc1 {[%clk 0:00:20]}  Ne3 {[%clk 0:01:52]} 35. Bxe3 {[%clk 0:00:17]}  Rxe3 {[%clk 0:01:53]} 36. Rf7 {[%clk 0:00:17]}  Re7 {[%clk 0:01:51]} 37. Rxg7+ {[%clk 0:00:17]}  Kxg7 {[%clk 0:01:50]} 38. Qf2 {[%clk 0:00:16]}  Bf5 {[%clk 0:01:50]} 39. Re1 {[%clk 0:00:11]}  Rxe1 {[%clk 0:01:40]} 40. Qxe1 {[%clk 0:00:12]}  Qxd4 {[%clk 0:01:40]} 41. Qe7+ {[%clk 0:00:12]}  Kh6 {[%clk 0:01:41]} 42. Qf8+ {[%clk 0:00:09]}  Qg7 {[%clk 0:01:41]} 43. Qd6 {[%clk 0:00:08]}  Qb2+ {[%clk 0:01:38]} 44. Kg1 {[%clk 0:00:07]}  Qc1+ {[%clk 0:01:38]} 45. Kh2 {[%clk 0:00:06]}  Qc2+ {[%clk 0:01:38]} 46. Kg1 {[%clk 0:00:06]}  Qe4 {[%clk 0:01:31]} 47. Qf8+ {[%clk 0:00:05]}  Kg5 {[%clk 0:01:31]} 48. Qd8+ {[%clk 0:00:03]}  Kg4 {[%clk 0:01:30]} 49. Qh4+ {[%clk 0:00:03]}  Kf3 {[%clk 0:01:30]} 50. Qh1+ {[%clk 0:00:02]}  Ke3 {[%clk 0:01:29]} 0-1


[Site "https://www.chess.com"]

[Event "Titled Tuesday Blitz February 28 Late 2023"]
[White "Carlsen, Magnus"]
[Black "Al-Tarboush, Ward"]
[WhiteFideId "1503014"]
[BlackFideId "7601450"]
[WhiteElo "2852"]
[BlackElo "2267"]
[Result "1-0"]
[Round "02"]
[TimeControl "180+2"]
[Date "2023.02.28"]
[WhiteClock "0:00:52"]
[BlackClock "0:00:02"]

1. e4 {[%clk 0:03:00]}  c5 {[%clk 0:02:54]} 2. Nf3 {[%clk 0:02:57]}  Nc6 {[%clk 0:02:54]} 3. Bb5 {[%clk 0:02:56]}  e6 {[%clk 0:02:54]} 4. Bxc6 {[%clk 0:02:53]}  bxc6 {[%clk 0:02:54]} 5. d3 {[%clk 0:02:52]}  Ne7 {[%clk 0:02:53]} 6. Qe2 {[%clk 0:02:49]}  f6 {[%clk 0:02:50]} 7. e5 {[%clk 0:02:46]}  fxe5 {[%clk 0:02:51]} 8. Nxe5 {[%clk 0:02:45]}  d6 {[%clk 0:02:50]} 9. Nc4 {[%clk 0:02:39]}  e5 {[%clk 0:02:44]} 10. f4 {[%clk 0:02:37]}  Nf5 {[%clk 0:02:26]} 11. fxe5 {[%clk 0:02:35]}  Nd4 {[%clk 0:02:17]} 12. Qf2 {[%clk 0:02:31]}  dxe5 {[%clk 0:02:08]} 13. O-O {[%clk 0:02:30]}  Be6 {[%clk 0:01:59]} 14. c3 {[%clk 0:02:23]}  Nf5 {[%clk 0:01:46]} 15. Qe2 {[%clk 0:02:22]}  Bd6 {[%clk 0:01:41]} 16. Nbd2 {[%clk 0:02:13]}  O-O {[%clk 0:01:40]} 17. Ne4 {[%clk 0:02:13]}  Bc7 {[%clk 0:01:40]} 18. Nxc5 {[%clk 0:02:11]}  Bxc4 {[%clk 0:01:30]} 19. dxc4 {[%clk 0:02:10]}  Bb6 {[%clk 0:01:30]} 20. Be3 {[%clk 0:01:40]}  Nxe3 {[%clk 0:01:20]} 21. Qxe3 {[%clk 0:01:41]}  Qe7 {[%clk 0:01:20]} 22. b4 {[%clk 0:01:37]}  Bxc5 {[%clk 0:01:19]} 23. Qxc5 {[%clk 0:01:32]}  Qxc5+ {[%clk 0:01:19]} 24. bxc5 {[%clk 0:01:33]}  Rxf1+ {[%clk 0:01:14]} 25. Kxf1 {[%clk 0:01:32]}  Rf8+ {[%clk 0:01:07]} 26. Ke2 {[%clk 0:01:31]}  Rf4 {[%clk 0:01:05]} 27. Kd3 {[%clk 0:01:29]}  Rf2 {[%clk 0:01:01]} 28. Re1 {[%clk 0:01:29]}  Rxg2 {[%clk 0:00:58]} 29. Rxe5 {[%clk 0:01:29]}  Kf7 {[%clk 0:00:59]} 30. Rf5+ {[%clk 0:01:21]}  Ke7 {[%clk 0:00:56]} 31. Rh5 {[%clk 0:01:17]}  h6 {[%clk 0:00:53]} 32. a4 {[%clk 0:01:17]}  Ra2 {[%clk 0:00:41]} 33. Rh4 {[%clk 0:01:17]}  Rxa4 {[%clk 0:00:40]} 34. Re4+ {[%clk 0:01:16]}  Kf7 {[%clk 0:00:40]} 35. Rd4 {[%clk 0:01:15]}  Ke7 {[%clk 0:00:13]} 36. Rd6 {[%clk 0:01:14]}  Ra6 {[%clk 0:00:14]} 37. h4 {[%clk 0:01:13]}  g5 {[%clk 0:00:13]} 38. h5 {[%clk 0:01:12]}  g4 {[%clk 0:00:12]} 39. Rxh6 {[%clk 0:01:12]}  g3 {[%clk 0:00:09]} 40. Rg6 {[%clk 0:01:12]}  Ra1 {[%clk 0:00:06]} 41. Rxg3 {[%clk 0:01:12]}  Rh1 {[%clk 0:00:06]} 42. Rg5 {[%clk 0:01:11]}  a5 {[%clk 0:00:06]} 43. Kc2 {[%clk 0:01:12]}  a4 {[%clk 0:00:05]} 44. Kb2 {[%clk 0:01:12]}  Rh4 {[%clk 0:00:06]} 45. Rg7+ {[%clk 0:01:06]}  Ke6 {[%clk 0:00:04]} 46. Rg6+ {[%clk 0:01:05]}  Kd7 {[%clk 0:00:04]} 47. h6 {[%clk 0:01:01]}  Rxc4 {[%clk 0:00:04]} 48. Rd6+ {[%clk 0:01:01]}  Kc7 {[%clk 0:00:03]} 49. Rd4 {[%clk 0:01:01]}  Rxc5 {[%clk 0:00:03]} 50. Rh4 {[%clk 0:01:01]}  Rb5+ {[%clk 0:00:03]} 51. Ka3 {[%clk 0:01:02]}  Rb8 {[%clk 0:00:04]} 52. h7 {[%clk 0:01:02]}  Rh8 {[%clk 0:00:04]} 53. Kxa4 {[%clk 0:01:03]}  Kd6 {[%clk 0:00:04]} 54. Kb4 {[%clk 0:01:02]}  Kd5 {[%clk 0:00:04]} 55. c4+ {[%clk 0:01:02]}  Kd6 {[%clk 0:00:05]} 56. Rh6+ {[%clk 0:01:02]}  Kc7 {[%clk 0:00:03]} 57. Kc5 {[%clk 0:01:01]}  Kd7 {[%clk 0:00:03]} 58. Kb6 {[%clk 0:01:00]}  Rb8+ {[%clk 0:00:04]} 59. Ka7 {[%clk 0:01:00]}  Rh8 {[%clk 0:00:04]} 60. Kb7 {[%clk 0:01:00]}  c5 {[%clk 0:00:04]} 61. Kb6 {[%clk 0:01:00]}  Ke7 {[%clk 0:00:04]} 62. Kxc5 {[%clk 0:01:00]}  Kf7 {[%clk 0:00:04]} 63. Kd6 {[%clk 0:01:00]}  Kg7 {[%clk 0:00:04]} 64. Rh4 {[%clk 0:01:00]}  Rd8+ {[%clk 0:00:04]} 65. Ke7 {[%clk 0:00:59]}  Rh8 {[%clk 0:00:04]} 66. Rg4+ {[%clk 0:00:59]}  Kh6 {[%clk 0:00:04]} 67. Rh4+ {[%clk 0:00:53]}  Kg7 {[%clk 0:00:04]} 68. Rh1 {[%clk 0:00:53]}  Kg6 {[%clk 0:00:04]} 69. c5 {[%clk 0:00:54]}  Kf5 {[%clk 0:00:03]} 70. c6 {[%clk 0:00:52]}  Ke5 {[%clk 0:00:02]} 71. c7 {[%clk 0:00:52]}  Rc8 {[%clk 0:00:02]} 72. Rh5+ {[%clk 0:00:51]}  Ke4 {[%clk 0:00:02]} 73. Kd7 {[%clk 0:00:50]}  Rh8 {[%clk 0:00:02]} 74. c8=Q {[%clk 0:00:51]}  Rxc8 {[%clk 0:00:02]} 75. Kxc8 {[%clk 0:00:52]} 1-0


[Site "https://www.chess.com"]

[Event "Titled Tuesday Blitz February 28 Late 2023"]
[White "Sieciechowicz, Marcin"]
[Black "Caruana, Fabiano"]
[WhiteFideId "1130170"]
[BlackFideId "2020009"]
[WhiteElo "2302"]
[BlackElo "2818"]
[Result "1/2-1/2"]
[Round "02"]
[TimeControl "180+2"]
[Date "2023.02.28"]
[WhiteClock "0:00:04"]
[BlackClock "0:00:07"]

1. d4 {[%clk 0:03:00]}  Nf6 {[%clk 0:02:59]} 2. c4 {[%clk 0:02:50]}  Nc6 {[%clk 0:02:59]} 3. Nc3 {[%clk 0:02:47]}  e5 {[%clk 0:02:58]} 4. d5 {[%clk 0:02:47]}  Ne7 {[%clk 0:02:59]} 5. Nf3 {[%clk 0:01:51]}  Ng6 {[%clk 0:02:53]} 6. h4 {[%clk 0:01:49]}  h5 {[%clk 0:02:54]} 7. Bg5 {[%clk 0:01:46]}  d6 {[%clk 0:02:54]} 8. Qc2 {[%clk 0:01:30]}  Be7 {[%clk 0:02:53]} 9. e3 {[%clk 0:01:29]}  Ng4 {[%clk 0:02:49]} 10. Bd3 {[%clk 0:01:25]}  Nf8 {[%clk 0:02:43]} 11. Bxe7 {[%clk 0:01:25]}  Qxe7 {[%clk 0:02:44]} 12. Nb5 {[%clk 0:01:20]}  a6 {[%clk 0:02:42]} 13. Qa4 {[%clk 0:01:09]}  Kd8 {[%clk 0:02:42]} 14. Nc3 {[%clk 0:01:05]}  Nd7 {[%clk 0:02:40]} 15. Qc2 {[%clk 0:00:27]}  Ke8 {[%clk 0:02:36]} 16. Bf5 {[%clk 0:00:27]}  Kf8 {[%clk 0:02:29]} 17. O-O-O {[%clk 0:00:26]}  g6 {[%clk 0:02:27]} 18. Bxg4 {[%clk 0:00:22]}  hxg4 {[%clk 0:02:28]} 19. Ng5 {[%clk 0:00:22]}  Kg7 {[%clk 0:02:17]} 20. g3 {[%clk 0:00:22]}  a5 {[%clk 0:02:11]} 21. Kb1 {[%clk 0:00:21]}  Nc5 {[%clk 0:02:11]} 22. f4 {[%clk 0:00:19]}  gxf3 {[%clk 0:01:58]} 23. Nxf3 {[%clk 0:00:17]}  Bg4 {[%clk 0:01:51]} 24. Rdf1 {[%clk 0:00:13]}  Rh5 {[%clk 0:01:41]} 25. Ng5 {[%clk 0:00:12]}  f6 {[%clk 0:01:38]} 26. Nge4 {[%clk 0:00:12]}  Nxe4 {[%clk 0:01:30]} 27. Nxe4 {[%clk 0:00:13]}  Rf5 {[%clk 0:01:29]} 28. Ka1 {[%clk 0:00:12]}  Rh8 {[%clk 0:01:28]} 29. Qg2 {[%clk 0:00:11]}  Qd7 {[%clk 0:01:18]} 30. Nc3 {[%clk 0:00:07]}  Rhh5 {[%clk 0:01:13]} 31. e4 {[%clk 0:00:05]}  Rxf1+ {[%clk 0:01:13]} 32. Qxf1 {[%clk 0:00:06]}  f5 {[%clk 0:01:12]} 33. exf5 {[%clk 0:00:06]}  Rxf5 {[%clk 0:01:09]} 34. Qd3 {[%clk 0:00:06]}  Rf3 {[%clk 0:01:09]} 35. Qd2 {[%clk 0:00:05]}  Qf5 {[%clk 0:01:08]} 36. a3 {[%clk 0:00:04]}  Rf1+ {[%clk 0:01:06]} 37. Rxf1 {[%clk 0:00:04]}  Qxf1+ {[%clk 0:01:07]} 38. Ka2 {[%clk 0:00:04]}  Qxc4+ {[%clk 0:01:07]} 39. Ka1 {[%clk 0:00:04]}  Qf1+ {[%clk 0:01:01]} 40. Ka2 {[%clk 0:00:04]}  Qf6 {[%clk 0:00:53]} 41. Qe3 {[%clk 0:00:04]}  Qf7 {[%clk 0:00:50]} 42. Qa7 {[%clk 0:00:04]}  b6 {[%clk 0:00:50]} 43. Qb7 {[%clk 0:00:04]}  Bf3 {[%clk 0:00:50]} 44. Qc6 {[%clk 0:00:04]}  e4 {[%clk 0:00:45]} 45. Qc4 {[%clk 0:00:04]}  Kh7 {[%clk 0:00:30]} 46. Qd4 {[%clk 0:00:04]}  Qe7 {[%clk 0:00:30]} 47. Qe3 {[%clk 0:00:03]}  Qe5 {[%clk 0:00:30]} 48. a4 {[%clk 0:00:02]}  Qxg3 {[%clk 0:00:29]} 49. Nxe4 {[%clk 0:00:02]}  Qxh4 {[%clk 0:00:11]} 50. Qxf3 {[%clk 0:00:02]}  Qe7 {[%clk 0:00:10]} 51. Nf6+ {[%clk 0:00:01]}  Kg7 {[%clk 0:00:10]} 52. Ng4 {[%clk 0:00:02]}  Qf7 {[%clk 0:00:06]} 53. Qc3+ {[%clk 0:00:02]}  Kf8 {[%clk 0:00:06]} 54. Qc4 {[%clk 0:00:02]}  Ke8 {[%clk 0:00:05]} 55. Ne3 {[%clk 0:00:02]}  Kd8 {[%clk 0:00:06]} 56. Nc2 {[%clk 0:00:02]}  g5 {[%clk 0:00:05]} 57. Nd4 {[%clk 0:00:02]}  Ke8 {[%clk 0:00:05]} 58. Ne6 {[%clk 0:00:02]}  g4 {[%clk 0:00:04]} 59. Qxg4 {[%clk 0:00:02]}  Ke7 {[%clk 0:00:04]} 60. Qg5+ {[%clk 0:00:02]}  Qf6 {[%clk 0:00:02]} 61. Qg4 {[%clk 0:00:02]}  Qf7 {[%clk 0:00:02]} 62. Qc4 {[%clk 0:00:02]}  Qe8 {[%clk 0:00:01]} 63. Qxc7+ {[%clk 0:00:02]}  Kf6 {[%clk 0:00:02]} 64. Qxd6 {[%clk 0:00:02]}  Qxa4+ {[%clk 0:00:02]} 65. Qa3 {[%clk 0:00:02]}  Qc4+ {[%clk 0:00:03]} 66. Qb3 {[%clk 0:00:02]}  Qe4 {[%clk 0:00:03]} 67. Qc3+ {[%clk 0:00:02]}  Ke7 {[%clk 0:00:03]} 68. Nd4 {[%clk 0:00:02]}  Qxd5+ {[%clk 0:00:03]} 69. b3 {[%clk 0:00:03]}  Kd7 {[%clk 0:00:03]} 70. Qc4 {[%clk 0:00:03]}  Qxc4 {[%clk 0:00:04]} 71. bxc4 {[%clk 0:00:04]}  Kd6 {[%clk 0:00:04]} 72. Kb3 {[%clk 0:00:04]}  Kc5 {[%clk 0:00:05]} 73. Nc2 {[%clk 0:00:03]}  b5 {[%clk 0:00:05]} 74. cxb5 {[%clk 0:00:02]}  Kxb5 {[%clk 0:00:06]} 75. Na3+ {[%clk 0:00:03]}  Kc6 {[%clk 0:00:06]} 76. Ka4 {[%clk 0:00:04]}  Kd5 {[%clk 0:00:07]} 77. Kxa5 {[%clk 0:00:04]} 1/2-1/2


[Site "https://www.chess.com"]

[Event "Titled Tuesday Blitz February 28 Late 2023"]
[White "Duda, Jan-Krzysztof"]
[Black "Diaz Perez, Michel Alejandro"]
[WhiteFideId "1170546"]
[BlackFideId "3517179"]
[WhiteElo "2790"]
[BlackElo "2333"]
[Result "1-0"]
[Round "02"]
[TimeControl "180+2"]
[Date "2023.02.28"]
[WhiteClock "0:00:19"]
[BlackClock "0:00:25"]

1. c3 {[%clk 0:03:00]}  Nf6 {[%clk 0:02:58]} 2. d4 {[%clk 0:03:01]}  d5 {[%clk 0:02:57]} 3. Bf4 {[%clk 0:03:01]}  c6 {[%clk 0:02:53]} 4. e3 {[%clk 0:03:00]}  Bf5 {[%clk 0:02:49]} 5. Qb3 {[%clk 0:03:00]}  Qb6 {[%clk 0:02:48]} 6. c4 {[%clk 0:03:00]}  e6 {[%clk 0:02:47]} 7. c5 {[%clk 0:02:52]}  Qxb3 {[%clk 0:02:47]} 8. axb3 {[%clk 0:02:53]}  Nbd7 {[%clk 0:02:43]} 9. h3 {[%clk 0:02:42]}  Be7 {[%clk 0:02:32]} 10. Nc3 {[%clk 0:02:39]}  a6 {[%clk 0:02:31]} 11. b4 {[%clk 0:02:37]}  Rc8 {[%clk 0:02:31]} 12. Nf3 {[%clk 0:02:34]}  Bd8 {[%clk 0:02:31]} 13. Nd2 {[%clk 0:02:24]}  Bc7 {[%clk 0:02:30]} 14. g4 {[%clk 0:02:23]}  Bg6 {[%clk 0:02:28]} 15. Be2 {[%clk 0:02:19]}  Ng8 {[%clk 0:02:19]} 16. Nb3 {[%clk 0:02:15]}  Ne7 {[%clk 0:02:18]} 17. Na5 {[%clk 0:02:14]}  Bxf4 {[%clk 0:02:06]} 18. exf4 {[%clk 0:02:14]}  Rc7 {[%clk 0:02:01]} 19. f3 {[%clk 0:02:07]}  f6 {[%clk 0:02:00]} 20. Kf2 {[%clk 0:01:59]}  h6 {[%clk 0:01:59]} 21. Rhe1 {[%clk 0:01:54]}  Kf7 {[%clk 0:01:59]} 22. Bf1 {[%clk 0:01:53]}  Re8 {[%clk 0:01:56]} 23. h4 {[%clk 0:01:49]}  Nc8 {[%clk 0:01:44]} 24. Re3 {[%clk 0:01:38]}  Bh7 {[%clk 0:00:59]} 25. Rae1 {[%clk 0:01:26]}  Re7 {[%clk 0:00:51]} 26. Na4 {[%clk 0:00:58]}  g5 {[%clk 0:00:50]} 27. fxg5 {[%clk 0:00:49]}  fxg5 {[%clk 0:00:49]} 28. hxg5 {[%clk 0:00:49]}  hxg5 {[%clk 0:00:50]} 29. Kg3 {[%clk 0:00:46]}  Kf6 {[%clk 0:00:49]} 30. Nc3 {[%clk 0:00:37]}  e5 {[%clk 0:00:48]} 31. Ne2 {[%clk 0:00:31]}  exd4 {[%clk 0:00:38]} 32. Nxd4 {[%clk 0:00:31]}  Rxe3 {[%clk 0:00:38]} 33. Rxe3 {[%clk 0:00:32]}  Ne5 {[%clk 0:00:38]} 34. f4 {[%clk 0:00:28]}  gxf4+ {[%clk 0:00:38]} 35. Kxf4 {[%clk 0:00:29]}  Ng6+ {[%clk 0:00:37]} 36. Kg3 {[%clk 0:00:30]}  Ne5 {[%clk 0:00:37]} 37. g5+ {[%clk 0:00:30]}  Kxg5 {[%clk 0:00:34]} 38. Ne6+ {[%clk 0:00:30]}  Kf6 {[%clk 0:00:34]} 39. Nxc7 {[%clk 0:00:30]}  Ne7 {[%clk 0:00:32]} 40. Ne8+ {[%clk 0:00:28]}  Ke6 {[%clk 0:00:28]} 41. Bh3+ {[%clk 0:00:27]}  Bf5 {[%clk 0:00:28]} 42. Ng7+ {[%clk 0:00:27]}  Kf6 {[%clk 0:00:27]} 43. Nxf5 {[%clk 0:00:27]}  Nxf5+ {[%clk 0:00:27]} 44. Bxf5 {[%clk 0:00:27]}  Kxf5 {[%clk 0:00:28]} 45. Nxb7 {[%clk 0:00:27]}  d4 {[%clk 0:00:28]} 46. Nd6+ {[%clk 0:00:28]}  Ke6 {[%clk 0:00:28]} 47. Re4 {[%clk 0:00:19]}  Kd5 {[%clk 0:00:27]} 48. Kf4 {[%clk 0:00:19]}  Nd3+ {[%clk 0:00:26]} 49. Kf5 {[%clk 0:00:19]}  Nxb4 {[%clk 0:00:25]} 50. Re5# {[%clk 0:00:19]} 1-0


[Site "https://www.chess.com"]

[Event "Titled Tuesday Blitz February 28 Late 2023"]
[White "Martynov, Pavel"]
[Black "Paravyan, David"]
[WhiteFideId "4101260"]
[BlackFideId "4194985"]
[WhiteElo "2314"]
[BlackElo "2577"]
[Result "1/2-1/2"]
[Round "02"]
[TimeControl "180+2"]
[Date "2023.02.28"]
[WhiteClock "0:01:07"]
[BlackClock "0:00:37"]

1. e4 {[%clk 0:03:00]}  e5 {[%clk 0:03:00]} 2. Nf3 {[%clk 0:03:00]}  Nf6 {[%clk 0:03:00]} 3. Nxe5 {[%clk 0:03:00]}  d6 {[%clk 0:03:01]} 4. Nf3 {[%clk 0:02:59]}  Nxe4 {[%clk 0:03:01]} 5. d4 {[%clk 0:02:58]}  d5 {[%clk 0:03:01]} 6. Bd3 {[%clk 0:02:57]}  Bd6 {[%clk 0:03:02]} 7. O-O {[%clk 0:02:54]}  O-O {[%clk 0:03:02]} 8. Re1 {[%clk 0:02:45]}  Bf5 {[%clk 0:03:01]} 9. c4 {[%clk 0:02:45]}  c6 {[%clk 0:03:01]} 10. Nc3 {[%clk 0:02:44]}  Nxc3 {[%clk 0:02:56]} 11. bxc3 {[%clk 0:02:45]}  Bxd3 {[%clk 0:02:54]} 12. Qxd3 {[%clk 0:02:46]}  dxc4 {[%clk 0:02:55]} 13. Qxc4 {[%clk 0:02:46]}  b5 {[%clk 0:02:52]} 14. Qd3 {[%clk 0:02:46]}  Nd7 {[%clk 0:02:52]} 15. Bd2 {[%clk 0:02:40]}  Qc7 {[%clk 0:02:46]} 16. h3 {[%clk 0:02:40]}  Rfe8 {[%clk 0:02:45]} 17. c4 {[%clk 0:02:37]}  bxc4 {[%clk 0:02:46]} 18. Qxc4 {[%clk 0:02:37]}  Nb6 {[%clk 0:02:38]} 19. Rxe8+ {[%clk 0:02:34]}  Rxe8 {[%clk 0:02:38]} 20. Qa6 {[%clk 0:02:34]}  h6 {[%clk 0:02:34]} 21. Rc1 {[%clk 0:02:34]}  Qd7 {[%clk 0:02:33]} 22. a4 {[%clk 0:02:33]}  Rc8 {[%clk 0:02:26]} 23. a5 {[%clk 0:02:32]}  Nd5 {[%clk 0:02:26]} 24. Ne5 {[%clk 0:02:29]}  Bxe5 {[%clk 0:02:25]} 25. dxe5 {[%clk 0:02:30]}  Nc7 {[%clk 0:02:22]} 26. Qb7 {[%clk 0:02:24]}  Rd8 {[%clk 0:01:56]} 27. Be3 {[%clk 0:02:24]}  Nd5 {[%clk 0:01:56]} 28. Qxd7 {[%clk 0:02:19]}  Rxd7 {[%clk 0:01:57]} 29. Rxc6 {[%clk 0:02:19]}  Nxe3 {[%clk 0:01:56]} 30. fxe3 {[%clk 0:02:20]}  Rd5 {[%clk 0:01:55]} 31. e6 {[%clk 0:01:30]}  fxe6 {[%clk 0:01:56]} 32. Ra6 {[%clk 0:01:30]}  Rd2 {[%clk 0:01:22]} 33. Rxe6 {[%clk 0:01:25]}  Kf7 {[%clk 0:00:52]} 34. Rc6 {[%clk 0:01:22]}  Re2 {[%clk 0:00:50]} 35. Rc7+ {[%clk 0:01:21]}  Kf6 {[%clk 0:00:50]} 36. Rxa7 {[%clk 0:01:22]}  Rxe3 {[%clk 0:00:50]} 37. Kf2 {[%clk 0:01:21]}  Ra3 {[%clk 0:00:50]} 38. Ra8 {[%clk 0:01:21]}  h5 {[%clk 0:00:47]} 39. h4 {[%clk 0:01:20]}  Kf5 {[%clk 0:00:47]} 40. Ra7 {[%clk 0:01:10]}  g6 {[%clk 0:00:43]} 41. Ra6 {[%clk 0:01:10]}  Ra4 {[%clk 0:00:38]} 42. Kg3 {[%clk 0:01:09]}  Ra3+ {[%clk 0:00:39]} 43. Kf2 {[%clk 0:01:06]}  Ra4 {[%clk 0:00:37]} 44. Kg3 {[%clk 0:01:06]}  Ra3+ {[%clk 0:00:37]} 45. Kf2 {[%clk 0:01:07]} 1/2-1/2


[Site "https://www.chess.com"]